bitfinex/quotes_SOLUSD_20260304
["timestamp","ask_amount","ask_price","bid_price","bid_amount"]
[1772618364411,0.28432314,90.549,90.509,4.49827146]
[1772618366095,0.28432314,90.558,90.511,4.49827146]
[1772618366801,0.28432314,90.579,90.514,4.49827146]
[1772618367003,0.28432314,90.559,90.514,4.49827146]
[1772618367193,0.28432314,90.549,90.51,11.04850292]
[1772618367902,0.28432314,90.591,90.51,11.04850292]
[1772618368102,0.28432314,90.547,90.51,11.04850292]
[1772618369915,0.28432314,90.545,90.508,4.49827146]
[1772618371116,5.01885798,90.57,90.508,4.49827146]
[1772618371317,0.2,90.61,90.508,4.49827146]
[1772618371318,5.01885798,90.58,90.508,4.49827146]
[1772618371817,0.28432314,90.579,90.508,4.49827146]
[1772618372011,38.64030293,90.579,90.513,4.49827146]
[1772618372310,0.28432314,90.578,90.513,4.49827146]
[1772618372922,11.04008655,90.579,90.513,4.49827146]
[1772618373129,0.28432314,90.578,90.513,4.49827146]
[1772618373310,0.14216157,90.578,90.513,4.49827146]
[1772618374632,0.28432314,90.578,90.517,3.69383402]
[1772618374921,0.28432314,90.578,90.518,4.49827146]
[1772618375840,0.28432314,90.569,90.518,4.49827146]
[1772618377210,0.28432314,90.559,90.519,15.54567587]
[1772618377404,0.28432314,90.559,90.519,11.04740441]
[1772618377405,5.01885798,90.55,90.519,11.04740441]
[1772618377616,0.28432314,90.559,90.519,11.04740441]
[1772618378612,0.28432314,90.557,90.519,11.04740441]
[1772618379310,0.28432314,90.557,90.518,4.49827146]
[1772618379830,0.28432314,90.557,90.519,4.49827146]
[1772618380420,11.0426467,90.558,90.519,4.49827146]
[1772618380926,11.32562866,90.569,90.521,4.49827146]
[1772618381227,11.18346709,90.569,90.521,4.49827146]
[1772618381405,0.14216157,90.581,90.524,4.49827146]
[1772618381722,11.03972091,90.582,90.524,4.49827146]
[1772618382218,0.28432314,90.581,90.524,4.49827146]
[1772618382924,11.03886785,90.589,90.529,4.49827146]
[1772618383124,0.28432314,90.588,90.529,4.49827146]
[1772618383305,0.28432314,90.569,90.529,4.49827146]
[1772618383511,0.28432314,90.559,90.519,4.49827146]
[1772618384122,0.28432314,90.559,90.519,15.54565344]
[1772618384522,0.28432314,90.588,90.519,11.04738198]
[1772618384828,0.28432314,90.557,90.522,4.49827146]
[1772618385605,0.28432314,90.549,90.506,11.04899122]
[1772618385811,0.28432314,90.539,90.495,11.05033121]
[1772618386322,0.28432314,90.529,90.492,4.49827146]
[1772618386511,0.28432314,90.529,90.493,11.05057849]
[1772618386714,0.28432314,90.529,90.492,4.49827146]
[1772618386911,0.28432314,90.527,90.492,4.49827146]
[1772618387923,0.28432314,90.527,90.491,11.05081177]
[1772618388110,0.28432314,90.527,90.486,11.05131604]
[1772618388927,38.95023858,90.519,90.484,4.49827146]
[1772618389923,38.95023858,90.519,90.476,4.49827146]
[1772618390909,55.22480527,90.54,90.478,4.49827146]
[1772618390910,0.28432314,90.528,90.478,4.49827146]
[1772618391113,0.28432314,90.528,90.477,38.68386439]
[1772618391114,11.04496404,90.539,90.481,4.49827146]
[1772618391516,0.28432314,90.538,90.481,4.49827146]
[1772618392638,0.28432314,90.536,90.483,4.49827146]
[1772618395439,0.28432314,90.534,90.485,4.49827146]
[1772618395738,0.28432314,90.559,90.488,4.49827146]
[1772618396032,5.01885798,90.56,90.488,4.49827146]
[1772618396434,5.01885798,90.55,90.485,4.49827146]
[1772618396729,0.28432314,90.549,90.488,4.49827146]
[1772618397042,0.14216157,90.549,90.488,4.49827146]
[1772618397537,0.14216157,90.549,90.493,4.49827146]
[1772618397538,0.14216157,90.548,90.493,4.49827146]
[1772618398239,55.20469902,90.572,90.493,4.49827146]
[1772618398240,27.60520814,90.563,90.493,4.49827146]
[1772618398536,0.14216157,90.561,90.493,4.49827146]
[1772618399041,0.28432314,90.559,90.493,4.49827146]
[1772618399618,0.28432314,90.557,90.498,4.49827146]
[1772618400439,11.0426467,90.558,90.498,4.49827146]
[1772618400639,11.04142743,90.568,90.498,4.49827146]
[1772618400842,11.04094864,90.572,90.509,4.49827146]
[1772618401344,38.64329815,90.572,90.509,4.49827146]
[1772618401527,0.28432314,90.569,90.514,4.49827146]
[1772618401843,11.04045235,90.576,90.514,4.49827146]
[1772618402031,11.0409398,90.572,90.514,4.49827146]
[1772618402621,0.28432314,90.571,90.514,4.49827146]
[1772618402819,11.03910753,90.588,90.52,4.49827146]
[1772618403029,27.59455394,90.598,90.52,4.49827146]
[1772618403618,11.03983848,90.582,90.525,4.49827146]
[1772618403823,11.03983848,90.582,90.524,3.69383402]
[1772618403824,11.03655306,90.608,90.53,4.49827146]
[1772618404025,38.62793571,90.608,90.53,4.49827146]
[1772618404235,38.62793571,90.608,90.541,4.49827146]
[1772618404438,0.2,90.61,90.55,4.49827146]
[1772618404849,0.2,90.61,90.556,3.69383402]
[1772618405146,0.2,90.61,90.557,4.49827146]
[1772618405841,11.03643125,90.609,90.562,4.49827146]
[1772618406047,0.2,90.61,90.562,4.49827146]
[1772618406458,11.23635933,90.61,90.562,4.49827146]
[1772618406830,0.2,90.61,90.562,4.49827146]
[1772618407236,16.25525399,90.61,90.562,4.49827146]
[1772618407431,11.23639601,90.61,90.562,4.49827146]
[1772618407941,11.23639601,90.61,90.567,4.49827146]
[1772618408128,38.82716965,90.61,90.567,4.49827146]
[1772618408550,11.23639601,90.61,90.567,4.49827146]
[1772618409351,0.2,90.61,90.567,4.49827146]
[1772618409647,11.03643125,90.609,90.567,4.49827146]
[1772618409952,11.03643125,90.609,90.566,3.69383402]
[1772618409953,0.2,90.61,90.572,4.49827146]
[1772618411451,11.03643125,90.609,90.562,15.54030912]
[1772618411761,38.62750939,90.609,90.563,4.49827146]
[1772618411937,11.03643125,90.609,90.565,4.49827146]
[1772618412857,0.2,90.61,90.568,4.49827146]
[1772618413971,0.2,90.61,90.57,4.49827146]
[1772618414138,11.03643125,90.609,90.57,4.49827146]
[1772618415849,0.2,90.61,90.57,4.49827146]
[1772618416046,11.23639363,90.61,90.572,4.49827146]
[1772618416234,0.2,90.61,90.572,4.49827146]
[1772618416439,0.2,90.64,90.575,4.49827146]
[1772618416635,0.28432314,90.637,90.575,4.49827146]
[1772618417261,0.2,90.64,90.575,4.49827146]
[1772618417555,0.28432314,90.636,90.575,4.49827146]
[1772618417756,11.03302183,90.637,90.58,4.49827146]
[1772618417966,0.2,90.64,90.582,4.49827146]
[1772618418137,5.21885798,90.7,90.61,4.49827146]
[1772618418454,11.02947864,90.667,90.61,4.49827146]
[1772618418660,27.57280091,90.67,90.61,4.49827146]
[1772618419534,27.56925046,90.681,90.61,4.49827146]
[1772618420138,0.2,90.7,90.62,4.49827146]
[1772618420139,27.56539594,90.694,90.62,4.49827146]
[1772618420340,5.01885798,90.69,90.62,4.49827146]
[1772618420648,27.56539594,90.694,90.62,4.49827146]
[1772618421364,5.01885798,90.67,90.62,4.49827146]
[1772618421546,0.28432314,90.669,90.62,4.49827146]
[1772618421860,0.27616839,90.65,90.587,4.82477569]
[1772618422059,0.27616839,90.65,90.588,38.63646398]
[1772618422267,11.03156129,90.649,90.591,3.69383402]
[1772618423052,0.27616839,90.648,90.591,3.69383402]
[1772618423743,0.27616839,90.648,90.592,4.36052101]
[1772618423946,0.28432314,90.654,90.592,4.36052101]
[1772618424248,0.27616839,90.651,90.597,4.36052101]
[1772618424469,0.28432314,90.652,90.597,4.36052101]
[1772618424643,0.27616839,90.675,90.611,4.36052101]
[1772618424845,0.28432314,90.668,90.611,4.36052101]
[1772618425057,0.27616839,90.669,90.611,4.36052101]
[1772618425058,0.27616839,90.65,90.611,4.36052101]
[1772618425263,0.27616839,90.649,90.597,4.36052101]
[1772618425857,0.27616839,90.649,90.572,61.2]
[1772618425858,0.27616839,90.629,90.581,27.59960103]
[1772618426043,0.27616839,90.629,90.558,4.82477569]
[1772618426044,0.27616839,90.629,90.587,4.36052101]
[1772618426249,27.57863132,90.65,90.587,4.36052101]
[1772618426250,0.27616839,90.648,90.587,4.36052101]
[1772618426866,0.27616839,90.648,90.59,4.36052101]
[1772618427063,0.27616839,90.639,90.59,4.36052101]
[1772618427251,0.27616839,90.631,90.59,4.36052101]
[1772618427761,0.27616839,90.629,90.59,4.36052101]
[1772618428162,0.27616839,90.627,90.591,11.03862414]
[1772618429462,0.27616839,90.617,90.518,61.2]
[1772618429658,0.28432314,90.589,90.531,4.36052101]
[1772618429871,5.00871572,90.57,90.53,6.79189762]
[1772618430369,5.28488411,90.55,90.53,6.79189762]
[1772618430669,5.00871572,90.54,90.5,49.64]
[1772618430860,5.00871572,90.53,90.5,49.64]
[1772618431069,5.00871572,90.54,90.503,11.0492592]
[1772618431268,11.04142743,90.568,90.504,4.5]
[1772618431467,0.28432314,90.567,90.507,4.5]
[1772618431653,0.28432314,90.589,90.507,4.5]
[1772618432469,0.28432314,90.587,90.512,4.5]
[1772618433567,0.28432314,90.587,90.519,4.5]
[1772618433568,0.14216157,90.587,90.519,4.5]
[1772618433976,5.00871572,90.57,90.519,4.5]
[1772618434157,0.28432314,90.569,90.519,4.5]
[1772618434558,0.28432314,90.567,90.521,4.5]
[1772618435072,0.28432314,90.559,90.511,4.5]
[1772618435281,0.28432314,90.549,90.505,4.5]
[1772618435575,5.00871572,90.54,90.505,4.5]
[1772618435763,5.00871572,90.52,90.5,49.64]
[1772618435962,5.00871572,90.55,90.501,4.5]
[1772618436164,0.28432314,90.559,90.501,4.5]
[1772618436475,11.04154935,90.567,90.503,4.5]
[1772618436679,5.00871572,90.58,90.51,4.5]
[1772618436982,0.28432314,90.579,90.51,4.5]
[1772618437774,38.62793571,90.608,90.53,4.5]
[1772618438166,0.28432314,90.599,90.53,4.5]
[1772618438776,38.63177297,90.599,90.535,4.5]
[1772618439080,0.28432314,90.598,90.535,4.5]
[1772618439382,0.14216157,90.598,90.535,4.5]
[1772618439560,0.28432314,90.598,90.535,4.5]
[1772618439761,11.03706546,90.604,90.54,4.5]
[1772618439963,11.0363299,90.61,90.55,4.5]
[1772618440886,5.00871572,90.58,90.529,4.5]
[1772618441262,5.00871572,90.6,90.529,4.5]
[1772618441575,11.03640427,90.61,90.547,4.96693726]
[1772618441763,11.03655306,90.608,90.55,4.5]
[1772618442164,11.03595767,90.613,90.55,4.5]
[1772618442371,27.58338404,90.635,90.551,5.10909883]
[1772618442572,27.58338404,90.635,90.561,4.5]
[1772618442573,11.03521029,90.62,90.561,4.5]
[1772618442765,11.03521029,90.62,90.566,4.5]
[1772618443170,11.03168299,90.648,90.57,4.5]
[1772618443680,0.28432314,90.647,90.57,4.5]
[1772618444081,38.61089047,90.648,90.57,4.5]
[1772618444380,0.28432314,90.647,90.57,4.5]
[1772618444961,0.28432314,90.647,90.562,93.85835117]
[1772618444962,0.28432314,90.645,90.575,4.5]
[1772618447183,11.03115103,90.653,90.59,4.78432314]
[1772618447705,11.02949286,90.666,90.601,4.5]
[1772618447888,0.28432314,90.665,90.601,4.5]
[1772618448068,0.28432314,90.659,90.601,4.5]
[1772618448463,38.60322501,90.666,90.601,4.5]
[1772618448779,11.02949286,90.666,90.601,4.5]
[1772618449172,38.60322501,90.666,90.606,4.5]
[1772618449370,0.28432314,90.665,90.606,4.5]
[1772618449873,38.60322501,90.666,90.606,4.5]
[1772618450384,0.28432314,90.665,90.606,4.5]
[1772618450777,38.60322501,90.666,90.606,4.5]
[1772618450778,0.28432314,90.649,90.606,4.5]
[1772618451177,38.61089047,90.648,90.57,4.5]
[1772618451483,0.28432314,90.609,90.563,15.5419547]
[1772618451681,5.00871572,90.6,90.563,4.5]
[1772618451864,0.28432314,90.609,90.563,4.5]
[1772618452064,3.69383402,90.645,90.563,4.5]
[1772618452265,0.28432314,90.629,90.563,4.5]
[1772618452461,3.69383402,90.645,90.563,4.5]
[1772618452462,5.00871572,90.61,90.563,4.5]
[1772618453283,0.28432314,90.617,90.565,4.5]
[1772618453579,11.03533514,90.618,90.568,4.5]
[1772618455875,5.00871572,90.62,90.57,4.5]
[1772618457588,11.03521336,90.619,90.572,4.5]
[1772618458190,38.62324677,90.619,90.572,4.5]
[1772618458887,11.03521336,90.619,90.572,4.5]
[1772618459395,11.03399574,90.629,90.574,4.5]
[1772618459900,11.03277838,90.639,90.581,4.5]
[1772618460067,38.61472434,90.639,90.581,4.5]
[1772618460272,5.00871572,90.66,90.588,4.78432314]
[1772618460492,38.60620566,90.659,90.59,4.5]
[1772618460692,38.60620566,90.659,90.503,24.24463313]
[1772618460693,5.00871572,90.62,90.574,4.5]
[1772618460867,3.69383402,90.656,90.574,4.5]
[1772618461074,5.00871572,90.63,90.574,4.5]
[1772618461589,11.03277838,90.639,90.582,4.5]
[1772618461797,0.14216157,90.664,90.591,4.5]
[1772618461982,5.00871572,90.65,90.591,4.5]
[1772618462289,5.00871572,90.64,90.591,4.5]
[1772618463388,0.28432314,90.649,90.591,4.5]
[1772618463787,0.28432314,90.647,90.593,4.5]
[1772618464175,11.03168299,90.648,90.592,38.63475803]
[1772618464176,11.03168299,90.648,90.596,4.5]
[1772618464788,11.02961451,90.665,90.6,4.5]
[1772618464984,11.02961451,90.665,90.602,4.5]
[1772618465181,5.20871572,90.68,90.62,4.5]
[1772618465182,0.2,90.68,90.62,4.5]
[1772618465384,45.41160524,90.666,90.62,4.5]
[1772618465985,45.41160524,90.666,90.622,4.5]
[1772618466184,17.83787309,90.666,90.622,4.5]
[1772618466687,45.41160524,90.666,90.622,4.5]
[1772618466996,0.28432314,90.665,90.622,4.5]
[1772618467199,45.41160524,90.666,90.622,4.5]
[1772618467200,17.83787309,90.666,90.622,4.5]
[1772618467393,6.80837005,90.666,90.625,4.5]
[1772618467596,6.80837005,90.666,90.632,4.5]
[1772618467774,1.11059034,90.677,90.632,0.28432314]
[1772618467979,11.22538217,90.7,90.672,4.5]
[1772618468180,11.22538217,90.7,90.673,4.5]
[1772618468391,11.22538217,90.7,90.632,4.82477569]
[1772618468392,16.23409789,90.7,90.658,4.5]
[1772618468601,11.22538217,90.7,90.659,4.5]
[1772618469582,11.22538217,90.7,90.661,4.5]
[1772618469783,0.2,90.71,90.662,4.5]
[1772618469985,0.2,90.71,90.664,4.5]
[1772618470182,11.0242644,90.709,90.664,4.5]
[1772618470386,5.00871572,90.69,90.657,4.5]
[1772618470605,0.28432314,90.699,90.659,4.5]
[1772618471999,0.28432314,90.697,90.661,4.5]
[1772618473798,27.56066101,90.709,90.651,27.57818994]
[1772618473799,38.58492541,90.709,90.663,4.5]
[1772618474104,11.0242644,90.709,90.663,4.5]
[1772618474317,5.00871572,90.7,90.663,4.5]
[1772618475302,0.28432314,90.708,90.663,4.5]
[1772618475503,5.00871572,90.7,90.663,4.5]
[1772618476004,0.28432314,90.706,90.664,15.52973616]
[1772618476203,0.28432314,90.706,90.664,11.02973616]
[1772618476394,0.28432314,90.706,90.665,4.5]
[1772618478188,11.02475056,90.705,90.667,4.5]
[1772618478797,11.22414527,90.71,90.667,4.5]
[1772618478997,11.0242644,90.709,90.67,4.5]
[1772618479211,0.2,90.71,90.67,4.5]
[1772618479408,11.0242644,90.709,90.67,4.5]
[1772618479605,0.2,90.71,90.67,4.5]
[1772618480110,0.2,90.71,90.672,4.5]
[1772618481001,0.2,90.71,90.674,3.69383402]
[1772618481211,0.2,90.71,90.675,4.5]
[1772618481705,11.0242644,90.709,90.675,4.5]
[1772618482108,11.0242644,90.709,90.675,15.52828744]
[1772618482614,0.2,90.71,90.676,4.5]
[1772618483315,11.22414363,90.71,90.676,4.5]
[1772618483495,0.2,90.71,90.676,4.5]
[1772618483692,0.2,90.71,90.679,4.5]
[1772618483892,11.02200923,90.728,90.679,4.5]
[1772618484116,27.55210828,90.738,90.681,4.5]
[1772618484323,11.01976946,90.746,90.684,4.5]
[1772618484697,0.2,90.75,90.694,3.69383402]
[1772618484897,11.01679826,90.771,90.712,4.5]
[1772618485202,11.01697716,90.769,90.712,4.5]
[1772618485997,11.01635085,90.775,90.712,4.5]
[1772618486205,11.01697716,90.769,90.717,4.5]
[1772618486597,27.53664464,90.789,90.721,4.5]
[1772618486916,27.65427827,90.803,90.728,4.78432314]
[1772618487118,11.01297328,90.802,90.74,4.5]
[1772618488009,38.54540648,90.802,90.74,4.5]
[1772618488505,0.121934,90.803,90.745,4.5]
[1772618489222,0.121934,90.803,90.75,4.5]
[1772618489537,0.121934,90.803,90.761,4.5]
[1772618490205,0.198,90.802,90.761,4.3]
[1772618490401,0.198,90.777,90.715,4.82477569]
[1772618490597,0.198,90.777,90.717,4.82477569]
[1772618490806,11.0158849,90.778,90.719,3.69383402]
[1772618491017,11.0158849,90.778,90.718,0.28432314]
[1772618491412,11.0158849,90.778,90.717,4.82477569]
[1772618491613,0.121934,90.803,90.724,3.69383402]
[1772618491815,0.121934,90.803,90.748,3.69383402]
[1772618492013,0.121934,90.803,90.757,5.10909883]
[1772618492219,0.121934,90.803,90.76,4.4]
[1772618492413,1e-08,90.803,90.771,4.4]
[1772618493828,4.99430591,90.82,90.774,4.39531469]
[1772618494033,0.28432314,90.818,90.774,4.39531469]
[1772618494636,0.16455695,90.823,90.776,4.39531469]
[1772618494824,0.16455695,90.823,90.781,4.39531469]
[1772618495311,0.396,90.821,90.781,4.39531469]
[1772618495618,0.396,90.821,90.727,4.39531469]
[1772618495619,0.396,90.785,90.727,4.39531469]
[1772618495825,4.99430591,90.78,90.727,4.39531469]
[1772618496515,0.396,90.769,90.729,4.39531469]
[1772618496715,4.99430591,90.76,90.729,4.39531469]
[1772618496916,0.28432314,90.745,90.704,4.39531469]
[1772618497116,4.99430591,90.74,90.704,4.39531469]
[1772618498829,11.02061957,90.739,90.704,4.39531469]
[1772618499220,0.28432314,90.729,90.689,4.39531469]
[1772618499828,0.396,90.738,90.689,4.39531469]
[1772618500025,0.28432314,90.737,90.689,4.39531469]
[1772618501213,0.28432314,90.729,90.687,25.92614015]
[1772618501736,0.28432314,90.719,90.687,25.92614015]
[1772618502642,0.14216157,90.708,90.668,4.39531469]
[1772618502855,4.99430591,90.68,90.621,19.00414854]
[1772618503145,11.02851975,90.674,90.64,11.03261966]
[1772618503333,0.396,90.668,90.624,4.39531469]
[1772618503536,0.396,90.639,90.588,4.39531469]
[1772618503842,0.28432314,90.659,90.591,4.39531469]
[1772618504338,0.68032314,90.659,90.591,4.39531469]
[1772618504538,0.68032314,90.649,90.591,4.39531469]
[1772618504928,0.28432314,90.659,90.591,4.39531469]
[1772618505242,0.28432314,90.657,90.596,4.39531469]
[1772618506822,11.42575324,90.664,90.6,4.39531469]
[1772618507023,0.396,90.655,90.6,4.39531469]
[1772618507442,11.03095285,90.654,90.605,4.39531469]
[1772618508036,11.42695285,90.654,90.605,4.39531469]
[1772618508238,0.396,90.653,90.605,4.39531469]
[1772618509221,11.03095285,90.654,90.605,4.39531469]
[1772618509424,3.69383402,90.691,90.601,38.63092018]
[1772618509425,11.02839812,90.675,90.61,4.47076111]
[1772618509939,11.02839812,90.675,90.619,4.75508425]
[1772618510745,11.02438594,90.708,90.633,5.10909883]
[1772618510940,0.396,90.707,90.641,4.47076111]
[1772618511139,0.28432314,90.689,90.616,4.47076111]
[1772618511344,0.28432314,90.677,90.618,4.47076111]
[1772618511645,0.396,90.665,90.618,4.47076111]
[1772618512030,0.396,90.646,90.594,4.47076111]
[1772618512260,0.396,90.629,90.565,4.47076111]
[1772618512542,3.69383402,90.675,90.522,44.18796703]
[1772618512543,4.99430591,90.61,90.57,4.67076111]
[1772618513149,4.99430591,90.6,90.57,0.2]
[1772618513353,11.03764942,90.599,90.57,0.2]
[1772618513550,0.396,90.595,90.57,0.2]
[1772618514849,4.99430591,90.59,90.57,0.2]
[1772618515049,4.99430591,90.59,90.563,49.18]
[1772618515659,11.03886785,90.589,90.563,49.18]
[1772618517232,11.03825326,90.595,90.563,49.18]
[1772618517439,4.99430591,90.59,90.563,49.18]
[1772618517634,38.92036062,90.589,90.563,49.18]
[1772618518852,11.04008655,90.579,90.545,11.04412159]
[1772618519448,11.04008655,90.579,90.55,11.04359923]
[1772618519844,11.03942899,90.585,90.555,4.5]
[1772618520151,0.28432314,90.609,90.555,4.5]
[1772618520354,27.59003198,90.613,90.555,4.5]
[1772618520355,0.28432314,90.599,90.555,4.5]
[1772618520934,0.28432314,90.597,90.555,4.5]
[1772618521637,4.99430591,90.59,90.555,4.5]
[1772618521836,0.28432314,90.597,90.557,4.5]
[1772618522151,11.0363174,90.61,90.557,4.5]
[1772618522352,11.03569939,90.616,90.56,4.5]
[1772618522561,11.03494913,90.622,90.56,4.5]
[1772618523072,38.61494655,90.639,90.565,4.5]
[1772618523857,4.99430591,90.66,90.581,4.5]
[1772618524251,0.28432314,90.659,90.581,4.5]
[1772618524560,4.99430591,90.67,90.594,4.5]
[1772618524854,0.28432314,90.669,90.594,4.5]
[1772618525065,11.02912792,90.669,90.6,4.5]
[1772618525353,27.56950157,90.68,90.61,4.5]
[1772618525756,11.02669563,90.689,90.618,3.69383402]
[1772618525958,11.02669563,90.689,90.62,4.78432314]
[1772618526155,4.99430591,90.71,90.62,4.78432314]
[1772618526156,27.5622266,90.704,90.62,4.78432314]
[1772618526336,4.99430591,90.7,90.633,4.5]
[1772618526541,27.5622266,90.704,90.633,4.5]
[1772618526740,27.5622266,90.704,90.632,3.69383402]
[1772618526741,11.0242644,90.709,90.64,5.10909883]
[1772618526959,27.55837369,90.717,90.642,38.6134463]
[1772618527165,0.28432314,90.716,90.646,4.5]
[1772618527357,55.10712147,90.733,90.645,3.69383402]
[1772618527358,15.212808,124.0,90.648,4.5]
[1772618527559,15.212808,124.0,90.664,4.5]
[1772618527560,27.55011381,90.744,90.664,4.5]
[1772618527746,4.99430591,90.74,90.668,4.5]
[1772618527942,0.28432314,90.739,90.668,4.5]
[1772618528262,0.28432314,90.699,90.645,4.5]
[1772618528462,4.99430591,90.69,90.645,4.5]
[1772618528768,4.99430591,90.68,90.645,4.5]
[1772618529066,11.02681721,90.688,90.645,4.5]
[1772618529271,0.28432314,90.698,90.647,4.5]
[1772618529562,4.99430591,90.69,90.647,4.5]
[1772618529965,0.28432314,90.698,90.647,4.5]
[1772618530666,4.99430591,90.69,90.647,4.5]
[1772618530860,0.28432314,90.696,90.649,4.5]
[1772618532955,4.99430591,90.69,90.649,4.5]
[1772618533158,38.59088152,90.695,90.651,4.5]
[1772618533470,11.02061957,90.739,90.654,4.78432314]
[1772618533649,11.02061957,90.739,90.671,4.5]
[1772618533845,38.57216851,90.739,90.671,4.5]
[1772618534049,11.02061957,90.739,90.671,4.5]
[1772618534272,0.28432314,90.738,90.671,4.5]
[1772618534473,0.28432314,90.729,90.671,4.5]
[1772618535147,0.28432314,90.727,90.676,4.5]
[1772618535662,0.28432314,90.727,90.587,61.2]
[1772618535663,0.28432314,90.699,90.62,4.5]
[1772618535849,0.28432314,90.699,90.628,4.5]
[1772618536051,0.28432314,90.699,90.633,4.5]
[1772618536469,0.28432314,90.719,90.642,4.5]
[1772618537256,0.28432314,90.709,90.647,4.5]
[1772618537473,0.28432314,90.699,90.647,4.5]
[1772618538667,0.28432314,90.709,90.647,4.5]
[1772618539773,0.28432314,90.699,90.649,4.5]
[1772618540279,4.99430591,90.73,90.654,4.5]
[1772618540460,0.14216157,90.729,90.654,4.5]
[1772618540660,0.28432314,90.729,90.654,4.5]
[1772618541878,0.28432314,90.719,90.659,4.5]
[1772618542066,0.28432314,90.699,90.659,4.5]
[1772618542270,0.28432314,90.689,90.65,11.03138806]
[1772618542780,0.28432314,90.689,90.651,4.5]
[1772618543281,0.28432314,90.689,90.63,3.69383402]
[1772618543282,0.28432314,90.689,90.653,4.5]
[1772618543866,0.28432314,90.679,90.625,4.5]
[1772618545174,0.28432314,90.68,90.63,4.5]
[1772618545387,0.28432314,90.678,90.63,4.5]
[1772618546363,4.99430591,90.67,90.63,4.5]
[1772618546564,4.99430591,90.67,90.621,11.03492094]
[1772618546565,5.00784114,90.65,90.588,4.5]
[1772618546870,5.00784114,90.65,90.592,4.5]
[1772618546871,0.28432314,90.649,90.592,4.5]
[1772618547380,0.28432314,90.629,90.594,4.5]
[1772618547677,0.28432314,90.629,90.584,60.67947417]
[1772618548377,0.28432314,90.629,90.585,4.5]
[1772618549160,0.28432314,90.629,90.584,60.67947417]
[1772618549161,0.28432314,90.627,90.586,15.53923343]
[1772618549365,0.28432314,90.627,90.587,4.5]
[1772618549981,5.00784114,90.62,90.584,49.64]
[1772618550589,0.28432314,90.627,90.584,60.67942708]
[1772618550778,0.28432314,90.619,90.584,54.14]
[1772618550980,0.28432314,90.619,90.584,49.64]
[1772618551288,0.28432314,90.617,90.584,54.14]
[1772618551692,0.28432314,90.617,90.585,4.5]
[1772618552811,0.28432314,90.617,90.573,4.5]
[1772618553489,0.28432314,90.615,90.573,4.5]
[1772618554189,0.28432314,90.615,90.574,4.5]
[1772618554784,11.0355787,90.616,90.574,4.5]
[1772618555901,0.28432314,90.627,90.576,4.5]
[1772618556886,0.28432314,90.628,90.576,4.5]
[1772618557998,0.28432314,90.626,90.578,4.5]
[1772618559277,11.02803326,90.678,90.581,4.5]
[1772618559475,11.02803326,90.678,90.598,4.5]
[1772618559687,11.02803326,90.678,90.615,4.5]
[1772618559979,44.08335992,90.738,90.62,4.5]
[1772618559980,38.5934347,90.689,90.62,4.5]
[1772618560178,0.28432314,90.688,90.62,4.5]
[1772618560586,38.5934347,90.689,90.62,4.5]
[1772618560784,0.28432314,90.659,90.593,4.5]
[1772618560984,0.28432314,90.649,90.593,4.5]
[1772618561882,0.28432314,90.639,90.593,4.5]
[1772618562082,0.28432314,90.637,90.595,4.5]
[1772618563991,0.28432314,90.635,90.595,4.5]
[1772618564390,0.28432314,90.635,90.562,4.82477569]
[1772618564391,0.28432314,90.629,90.575,4.5]
[1772618564898,0.28432314,90.619,90.576,4.5]
[1772618565507,28.05,119.0,90.583,4.5]
[1772618565508,5.00784114,90.66,90.583,4.5]
[1772618566099,38.8905288,90.659,90.588,4.5]
[1772618566396,93.75792804,90.659,90.588,4.5]
[1772618566597,0.28432314,90.658,90.588,4.5]
[1772618567299,93.75792804,90.659,90.588,4.5]
[1772618567493,0.28432314,90.658,90.588,4.5]
[1772618568698,0.28432314,90.656,90.59,4.5]
[1772618570789,0.28432314,90.654,90.592,4.5]
[1772618571900,0.28432314,90.649,90.592,4.5]
[1772618572084,5.00784114,90.64,90.592,4.5]
[1772618572289,0.28432314,90.619,90.583,4.5]
[1772618572690,38.89904748,90.639,90.585,4.5]
[1772618573000,0.28432314,90.629,90.585,4.5]
[1772618573819,0.28432314,90.627,90.585,4.5]
[1772618574712,0.28432314,90.627,90.587,4.5]